[Event "Titled Tuesday Blitz July 05 Late 2022"]
[White "Maghsoodloo, Parham"]
[Black "Bilych, Olexiy"]
[WhiteFideId "12539929"]
[BlackFideId "14156504"]
[WhiteElo "2607"]
[BlackElo "2189"]
[Result "1-0"]
[Round "04"]
[TimeControl "180+1"]
[Date "2022.07.05"]
[WhiteClock "0:00:38"]
[BlackClock "0:00:02"]

1. d4 {[%clk 0:03:00]}  Nf6 {[%clk 0:02:55]} 2. c4 {[%clk 0:03:00]}  e6 {[%clk 0:02:54]} 3. Nc3 {[%clk 0:03:00]}  Bb4 {[%clk 0:02:54]} 4. e3 {[%clk 0:03:00]}  O-O {[%clk 0:02:53]} 5. Bd2 {[%clk 0:03:01]}  d5 {[%clk 0:02:46]} 6. Nf3 {[%clk 0:03:01]}  b6 {[%clk 0:02:41]} 7. cxd5 {[%clk 0:02:57]}  exd5 {[%clk 0:02:41]} 8. Rc1 {[%clk 0:02:58]}  a6 {[%clk 0:02:37]} 9. Bd3 {[%clk 0:02:55]}  Bb7 {[%clk 0:02:37]} 10. O-O {[%clk 0:02:55]}  Bd6 {[%clk 0:02:36]} 11. Ne5 {[%clk 0:02:55]}  c5 {[%clk 0:02:37]} 12. f4 {[%clk 0:02:56]}  Nc6 {[%clk 0:02:37]} 13. Ne2 {[%clk 0:02:54]}  Ne4 {[%clk 0:02:32]} 14. Bxe4 {[%clk 0:02:13]}  dxe4 {[%clk 0:02:33]} 15. Bc3 {[%clk 0:02:13]}  Ne7 {[%clk 0:02:26]} 16. Nc4 {[%clk 0:02:09]}  Nd5 {[%clk 0:02:15]} 17. Nxd6 {[%clk 0:02:08]}  Qxd6 {[%clk 0:02:14]} 18. dxc5 {[%clk 0:02:09]}  bxc5 {[%clk 0:02:08]} 19. Ng3 {[%clk 0:02:09]}  Rfe8 {[%clk 0:01:15]} 20. Qe2 {[%clk 0:01:40]}  Qg6 {[%clk 0:00:46]} 21. Rfd1 {[%clk 0:01:21]}  Rad8 {[%clk 0:00:42]} 22. Ba5 {[%clk 0:01:21]}  Rc8 {[%clk 0:00:37]} 23. Rd2 {[%clk 0:01:08]}  c4 {[%clk 0:00:19]} 24. Rd4 {[%clk 0:01:04]}  Rc5 {[%clk 0:00:11]} 25. Qd2 {[%clk 0:00:59]}  Nxe3 {[%clk 0:00:08]} 26. Bb4 {[%clk 0:00:55]}  Rb5 {[%clk 0:00:03]} 27. a4 {[%clk 0:00:45]}  Rxb4 {[%clk 0:00:03]} 28. Qxb4 {[%clk 0:00:44]}  Ba8 {[%clk 0:00:03]} 29. Qd6 {[%clk 0:00:40]}  Nf5 {[%clk 0:00:02]} 30. Qxg6 {[%clk 0:00:38]}  hxg6 {[%clk 0:00:03]} 31. Rdxc4 {[%clk 0:00:38]}  e3 {[%clk 0:00:03]} 32. Rc8 {[%clk 0:00:38]}  Nd6 {[%clk 0:00:02]} 33. Rxe8+ {[%clk 0:00:38]} 1-0


[Site "https://www.chess.com"]

[Event "Titled Tuesday Blitz July 05 Late 2022"]
[White "Matinian, Nikita"]
[Black "Svane, Rasmus"]
[WhiteFideId "24129100"]
[BlackFideId "4657101"]
[WhiteElo "2422"]
[BlackElo "2674"]
[Result "1-0"]
[Round "04"]
[TimeControl "180+1"]
[Date "2022.07.05"]
[WhiteClock "0:00:30"]
[BlackClock "0:00:26"]

1. e4 {[%clk 0:03:00]}  c6 {[%clk 0:03:00]} 2. d4 {[%clk 0:03:00]}  d5 {[%clk 0:03:01]} 3. e5 {[%clk 0:03:00]}  Bf5 {[%clk 0:03:01]} 4. Nf3 {[%clk 0:03:01]}  e6 {[%clk 0:03:01]} 5. Be2 {[%clk 0:03:01]}  Ne7 {[%clk 0:03:02]} 6. O-O {[%clk 0:02:59]}  Ng6 {[%clk 0:03:02]} 7. Be3 {[%clk 0:02:53]}  f6 {[%clk 0:03:01]} 8. Ne1 {[%clk 0:02:50]}  h5 {[%clk 0:02:59]} 9. f4 {[%clk 0:02:45]}  c5 {[%clk 0:02:58]} 10. c3 {[%clk 0:02:39]}  h4 {[%clk 0:02:52]} 11. Nd2 {[%clk 0:02:38]}  Nc6 {[%clk 0:02:44]} 12. Bg4 {[%clk 0:02:38]}  Nge7 {[%clk 0:02:32]} 13. Bh5+ {[%clk 0:02:29]}  g6 {[%clk 0:02:15]} 14. Be2 {[%clk 0:02:29]}  fxe5 {[%clk 0:02:14]} 15. fxe5 {[%clk 0:02:24]}  Qb6 {[%clk 0:02:00]} 16. Nb3 {[%clk 0:01:35]}  c4 {[%clk 0:01:54]} 17. Nc5 {[%clk 0:01:34]}  Qxb2 {[%clk 0:01:50]} 18. Rc1 {[%clk 0:00:59]}  b6 {[%clk 0:01:36]} 19. Nb7 {[%clk 0:00:58]}  Nc8 {[%clk 0:01:25]} 20. Qa4 {[%clk 0:00:37]}  Kd7 {[%clk 0:01:09]} 21. Bxc4 {[%clk 0:00:33]}  dxc4 {[%clk 0:01:01]} 22. d5 {[%clk 0:00:33]}  exd5 {[%clk 0:01:00]} 23. e6+ {[%clk 0:00:33]}  Kc7 {[%clk 0:00:37]} 24. Qa6 {[%clk 0:00:32]}  Qa3 {[%clk 0:00:34]} 25. Bf4+ {[%clk 0:00:32]}  Ne5 {[%clk 0:00:25]} 26. Bxe5+ {[%clk 0:00:32]}  Kc6 {[%clk 0:00:26]} 27. Nd8+ {[%clk 0:00:30]} 1-0


[Site "https://www.chess.com"]

[Event "Titled Tuesday Blitz July 05 Late 2022"]
[White "Mikhailov, Viacheslav"]
[Black "Bobadilla Viera, Jorge Samuel"]
[WhiteFideId "4187369"]
[BlackFideId "3906353"]
[WhiteElo "2381"]
[BlackElo "2202"]
[Result "0-1"]
[Round "04"]
[TimeControl "180+1"]
[Date "2022.07.06"]
[WhiteClock "0:00:38"]
[BlackClock "0:01:20"]

1. Nf3 {[%clk 0:03:00]}  Nf6 {[%clk 0:02:59]} 2. g3 {[%clk 0:02:59]}  d5 {[%clk 0:02:58]} 3. Bg2 {[%clk 0:02:59]}  e6 {[%clk 0:02:58]} 4. O-O {[%clk 0:03:00]}  Be7 {[%clk 0:02:58]} 5. c4 {[%clk 0:03:00]}  O-O {[%clk 0:02:59]} 6. d4 {[%clk 0:03:01]}  c6 {[%clk 0:02:56]} 7. Nc3 {[%clk 0:03:00]}  dxc4 {[%clk 0:02:55]} 8. Ne5 {[%clk 0:03:00]}  c5 {[%clk 0:02:51]} 9. dxc5 {[%clk 0:02:59]}  Bxc5 {[%clk 0:02:51]} 10. Qxd8 {[%clk 0:02:59]}  Rxd8 {[%clk 0:02:51]} 11. Nxc4 {[%clk 0:02:59]}  Nc6 {[%clk 0:02:51]} 12. Bf4 {[%clk 0:02:52]}  Nd5 {[%clk 0:02:43]} 13. Nxd5 {[%clk 0:02:34]}  exd5 {[%clk 0:02:43]} 14. Ne3 {[%clk 0:02:30]}  Be6 {[%clk 0:02:41]} 15. Rac1 {[%clk 0:02:29]}  Be7 {[%clk 0:02:38]} 16. Rfd1 {[%clk 0:02:28]}  g5 {[%clk 0:02:37]} 17. Bc7 {[%clk 0:02:24]}  Rd7 {[%clk 0:02:28]} 18. Bxd5 {[%clk 0:01:42]}  Rxc7 {[%clk 0:02:27]} 19. Bxe6 {[%clk 0:01:42]}  fxe6 {[%clk 0:02:27]} 20. a3 {[%clk 0:01:41]}  Rac8 {[%clk 0:02:24]} 21. Kg2 {[%clk 0:01:39]}  Ne5 {[%clk 0:02:24]} 22. Rxc7 {[%clk 0:01:37]}  Rxc7 {[%clk 0:02:25]} 23. f4 {[%clk 0:01:35]}  Ng6 {[%clk 0:02:14]} 24. Kf3 {[%clk 0:01:32]}  gxf4 {[%clk 0:02:11]} 25. gxf4 {[%clk 0:01:33]}  Bf6 {[%clk 0:02:11]} 26. b4 {[%clk 0:01:31]}  Kf7 {[%clk 0:02:03]} 27. f5 {[%clk 0:01:26]}  exf5 {[%clk 0:02:02]} 28. Nxf5 {[%clk 0:01:26]}  Ne5+ {[%clk 0:02:02]} 29. Kf4 {[%clk 0:01:22]}  Ng6+ {[%clk 0:01:53]} 30. Kf3 {[%clk 0:01:12]}  Ke6 {[%clk 0:01:51]} 31. e4 {[%clk 0:01:03]}  Rc3+ {[%clk 0:01:46]} 32. Kf2 {[%clk 0:01:02]}  Ke5 {[%clk 0:01:28]} 33. Nd6 {[%clk 0:00:52]}  Bh4+ {[%clk 0:01:24]} 34. Kg2 {[%clk 0:00:51]}  Nf4+ {[%clk 0:01:23]} 35. Kh1 {[%clk 0:00:51]}  Nd3 {[%clk 0:01:21]} 36. Nb5 {[%clk 0:00:39]}  Nf2+ {[%clk 0:01:18]} 37. Kg2 {[%clk 0:00:39]}  Nxd1 {[%clk 0:01:19]} 38. Nxc3 {[%clk 0:00:38]}  Nxc3 {[%clk 0:01:20]} 0-1


[Site "https://www.chess.com"]

[Event "Titled Tuesday Blitz July 05 Late 2022"]
[White "Navarrete Mendez, Gonzalo Alberto"]
[Black "Papp, Levente"]
[WhiteFideId "5106850"]
[BlackFideId "751243"]
[WhiteElo "2261"]
[BlackElo "2308"]
[Result "0-1"]
[Round "04"]
[TimeControl "180+1"]
[Date "2022.07.06"]
[WhiteClock "0:00:08"]
[BlackClock "0:00:18"]

1. e4 {[%clk 0:03:00]}  e6 {[%clk 0:03:00]} 2. d4 {[%clk 0:03:00]}  d5 {[%clk 0:03:00]} 3. Nc3 {[%clk 0:03:01]}  Bb4 {[%clk 0:03:00]} 4. e5 {[%clk 0:03:01]}  Ne7 {[%clk 0:03:00]} 5. a3 {[%clk 0:03:01]}  Bxc3+ {[%clk 0:03:01]} 6. bxc3 {[%clk 0:03:01]}  b6 {[%clk 0:03:02]} 7. Qg4 {[%clk 0:02:58]}  Ng6 {[%clk 0:03:02]} 8. h4 {[%clk 0:02:58]}  h5 {[%clk 0:03:02]} 9. Qg3 {[%clk 0:02:58]}  Ba6 {[%clk 0:03:02]} 10. Bxa6 {[%clk 0:02:58]}  Nxa6 {[%clk 0:03:03]} 11. Bg5 {[%clk 0:02:56]}  Qd7 {[%clk 0:03:03]} 12. Ne2 {[%clk 0:02:56]}  Qa4 {[%clk 0:03:03]} 13. O-O {[%clk 0:02:53]}  Qxc2 {[%clk 0:03:01]} 14. Qe3 {[%clk 0:02:53]}  Qe4 {[%clk 0:02:32]} 15. Qd2 {[%clk 0:02:42]}  Ne7 {[%clk 0:02:21]} 16. f3 {[%clk 0:02:05]}  Qg6 {[%clk 0:02:14]} 17. Nf4 {[%clk 0:01:58]}  Qf5 {[%clk 0:02:13]} 18. Qe2 {[%clk 0:01:50]}  Nb8 {[%clk 0:02:10]} 19. c4 {[%clk 0:01:43]}  Nbc6 {[%clk 0:01:56]} 20. cxd5 {[%clk 0:01:39]}  exd5 {[%clk 0:01:21]} 21. Rac1 {[%clk 0:01:22]}  Nxd4 {[%clk 0:01:08]} 22. Qe3 {[%clk 0:01:16]}  c5 {[%clk 0:01:07]} 23. Bxe7 {[%clk 0:01:14]}  Qxf4 {[%clk 0:01:02]} 24. Qxf4 {[%clk 0:00:33]}  Ne2+ {[%clk 0:01:02]} 25. Kf2 {[%clk 0:00:33]}  Nxf4 {[%clk 0:01:03]} 26. Ke3 {[%clk 0:00:19]}  Nxg2+ {[%clk 0:00:56]} 27. Kf2 {[%clk 0:00:19]}  Nf4 {[%clk 0:00:49]} 28. Ke3 {[%clk 0:00:19]}  Kxe7 {[%clk 0:00:33]} 29. Kxf4 {[%clk 0:00:19]}  Ke6 {[%clk 0:00:31]} 30. Rg1 {[%clk 0:00:17]}  g6 {[%clk 0:00:29]} 31. a4 {[%clk 0:00:18]}  Rhd8 {[%clk 0:00:23]} 32. a5 {[%clk 0:00:17]}  d4 {[%clk 0:00:20]} 33. Ke4 {[%clk 0:00:16]}  d3 {[%clk 0:00:19]} 34. f4 {[%clk 0:00:12]}  d2 {[%clk 0:00:18]} 35. Rcd1 {[%clk 0:00:12]}  Rd4+ {[%clk 0:00:18]} 36. Ke3 {[%clk 0:00:12]}  Rad8 {[%clk 0:00:19]} 37. Rg2 {[%clk 0:00:12]}  c4 {[%clk 0:00:17]} 38. axb6 {[%clk 0:00:09]}  axb6 {[%clk 0:00:17]} 39. f5+ {[%clk 0:00:06]}  gxf5 {[%clk 0:00:16]} 40. Rgxd2 {[%clk 0:00:05]}  Rxd2 {[%clk 0:00:16]} 41. Rxd2 {[%clk 0:00:06]}  Rxd2 {[%clk 0:00:17]} 42. Kxd2 {[%clk 0:00:06]}  Kxe5 {[%clk 0:00:17]} 43. Kc3 {[%clk 0:00:07]}  f4 {[%clk 0:00:18]} 44. Kb4 {[%clk 0:00:08]}  f3 {[%clk 0:00:18]} 0-1


[Site "https://www.chess.com"]

[Event "Titled Tuesday Blitz July 05 Late 2022"]
[White "Novikova, Galina"]
[Black "Della Morte, German"]
[WhiteFideId "4157095"]
[BlackFideId "113522"]
[WhiteElo "1863"]
[BlackElo "2363"]
[Result "0-1"]
[Round "04"]
[TimeControl "180+1"]
[Date "2022.07.06"]
[WhiteClock "0:00:01"]
[BlackClock "0:00:04"]

1. e4 {[%clk 0:03:00]}  Nc6 {[%clk 0:02:54]} 2. Nf3 {[%clk 0:03:00]}  d6 {[%clk 0:02:54]} 3. d4 {[%clk 0:02:59]}  Nf6 {[%clk 0:02:55]} 4. Nc3 {[%clk 0:03:00]}  g6 {[%clk 0:02:55]} 5. h3 {[%clk 0:02:58]}  Bg7 {[%clk 0:02:55]} 6. Be3 {[%clk 0:02:59]}  O-O {[%clk 0:02:55]} 7. Qd2 {[%clk 0:03:00]}  a6 {[%clk 0:02:55]} 8. O-O-O {[%clk 0:02:58]}  b5 {[%clk 0:02:55]} 9. Bd3 {[%clk 0:02:54]}  e5 {[%clk 0:02:19]} 10. d5 {[%clk 0:02:54]}  Na5 {[%clk 0:02:06]} 11. Bh6 {[%clk 0:02:51]}  Nc4 {[%clk 0:01:56]} 12. Bxc4 {[%clk 0:02:51]}  bxc4 {[%clk 0:01:57]} 13. Bxg7 {[%clk 0:02:51]}  Kxg7 {[%clk 0:01:58]} 14. Qe2 {[%clk 0:02:45]}  Bd7 {[%clk 0:01:52]} 15. Qxc4 {[%clk 0:02:45]}  Qb8 {[%clk 0:01:49]} 16. Nd2 {[%clk 0:02:31]}  Qb6 {[%clk 0:01:43]} 17. Rhf1 {[%clk 0:02:24]}  Rfb8 {[%clk 0:01:38]} 18. b3 {[%clk 0:02:21]}  Bb5 {[%clk 0:01:34]} 19. Nxb5 {[%clk 0:02:20]}  axb5 {[%clk 0:01:34]} 20. Qc3 {[%clk 0:02:17]}  Rxa2 {[%clk 0:01:32]} 21. f4 {[%clk 0:02:09]}  Nd7 {[%clk 0:01:24]} 22. fxe5 {[%clk 0:02:02]}  Nxe5 {[%clk 0:01:18]} 23. Nf3 {[%clk 0:02:01]}  Re8 {[%clk 0:01:03]} 24. Nxe5 {[%clk 0:02:01]}  Rxe5 {[%clk 0:01:04]} 25. Rf3 {[%clk 0:01:35]}  b4 {[%clk 0:00:49]} 26. Qd4 {[%clk 0:01:35]}  Qa5 {[%clk 0:00:32]} 27. Rdf1 {[%clk 0:01:33]}  Ra1+ {[%clk 0:00:28]} 28. Kd2 {[%clk 0:01:33]}  Rxf1 {[%clk 0:00:26]} 29. Rxf1 {[%clk 0:01:34]}  Qb5 {[%clk 0:00:18]} 30. Rf3 {[%clk 0:01:29]}  Kg8 {[%clk 0:00:16]} 31. h4 {[%clk 0:01:06]}  h5 {[%clk 0:00:14]} 32. Qe3 {[%clk 0:01:01]}  c6 {[%clk 0:00:11]} 33. Qf4 {[%clk 0:01:00]}  f5 {[%clk 0:00:03]} 34. Qh6 {[%clk 0:00:46]}  Kf7 {[%clk 0:00:01]} 35. Qh7+ {[%clk 0:00:46]}  Kf6 {[%clk 0:00:01]} 36. Qh8+ {[%clk 0:00:44]}  Kf7 {[%clk 0:00:02]} 37. Qd8 {[%clk 0:00:22]}  Qc5 {[%clk 0:00:02]} 38. Qd7+ {[%clk 0:00:22]}  Kf6 {[%clk 0:00:03]} 39. Qd8+ {[%clk 0:00:20]}  Kf7 {[%clk 0:00:03]} 40. exf5 {[%clk 0:00:20]}  Qxd5+ {[%clk 0:00:03]} 41. Rd3 {[%clk 0:00:21]}  Qxg2+ {[%clk 0:00:03]} 42. Kc1 {[%clk 0:00:21]}  Re1+ {[%clk 0:00:03]} 43. Kb2 {[%clk 0:00:22]}  gxf5 {[%clk 0:00:03]} 44. Qd7+ {[%clk 0:00:22]}  Re7 {[%clk 0:00:03]} 45. Qxf5+ {[%clk 0:00:21]}  Ke8 {[%clk 0:00:04]} 46. Qc8+ {[%clk 0:00:20]}  Kf7 {[%clk 0:00:04]} 47. Qf5+ {[%clk 0:00:19]}  Ke8 {[%clk 0:00:04]} 48. Rf3 {[%clk 0:00:18]}  Qg7+ {[%clk 0:00:03]} 49. Qf6 {[%clk 0:00:11]}  Qxf6+ {[%clk 0:00:03]} 50. Rxf6 {[%clk 0:00:12]}  Kd7 {[%clk 0:00:04]} 51. Rh6 {[%clk 0:00:12]}  Re5 {[%clk 0:00:04]} 52. Rh7+ {[%clk 0:00:13]}  Ke6 {[%clk 0:00:04]} 53. Rh6+ {[%clk 0:00:14]}  Kd5 {[%clk 0:00:05]} 54. Rh8 {[%clk 0:00:11]}  c5 {[%clk 0:00:05]} 55. Kc1 {[%clk 0:00:10]}  Ke4 {[%clk 0:00:05]} 56. Kd2 {[%clk 0:00:11]}  d5 {[%clk 0:00:06]} 57. Rf8 {[%clk 0:00:08]}  Rf5 {[%clk 0:00:06]} 58. Re8+ {[%clk 0:00:09]}  Kf4 {[%clk 0:00:06]} 59. Rc8 {[%clk 0:00:09]}  d4 {[%clk 0:00:07]} 60. Rg8 {[%clk 0:00:08]}  Re5 {[%clk 0:00:05]} 61. Kd3 {[%clk 0:00:08]}  Re3+ {[%clk 0:00:05]} 62. Kd2 {[%clk 0:00:08]}  Rh3 {[%clk 0:00:05]} 63. Rc8 {[%clk 0:00:08]}  Rxh4 {[%clk 0:00:05]} 64. Rxc5 {[%clk 0:00:08]}  Ke4 {[%clk 0:00:05]} 65. Rc4 {[%clk 0:00:07]}  Rh2+ {[%clk 0:00:05]} 66. Kc1 {[%clk 0:00:06]}  h4 {[%clk 0:00:06]} 67. Rxb4 {[%clk 0:00:06]}  Ke3 {[%clk 0:00:06]} 68. Rb8 {[%clk 0:00:07]}  h3 {[%clk 0:00:06]} 69. Re8+ {[%clk 0:00:07]}  Kf4 {[%clk 0:00:07]} 70. Rf8+ {[%clk 0:00:07]}  Ke5 {[%clk 0:00:07]} 71. b4 {[%clk 0:00:06]}  Rg2 {[%clk 0:00:07]} 72. Rh8 {[%clk 0:00:05]}  h2 {[%clk 0:00:07]} 73. Kb2 {[%clk 0:00:03]}  Kd5 {[%clk 0:00:08]} 74. Kb3 {[%clk 0:00:04]}  Rg3+ {[%clk 0:00:07]} 75. Ka4 {[%clk 0:00:03]}  Rg2 {[%clk 0:00:07]} 76. Rh5+ {[%clk 0:00:04]}  Ke4 {[%clk 0:00:07]} 77. b5 {[%clk 0:00:03]}  Rxc2 {[%clk 0:00:06]} 78. b6 {[%clk 0:00:04]}  Rb2 {[%clk 0:00:06]} 79. Ka5 {[%clk 0:00:03]}  d3 {[%clk 0:00:06]} 80. Ka6 {[%clk 0:00:03]}  d2 {[%clk 0:00:06]} 81. Rh4+ {[%clk 0:00:03]}  Ke3 {[%clk 0:00:06]} 82. Rh3+ {[%clk 0:00:03]}  Kf4 {[%clk 0:00:06]} 83. Rxh2 {[%clk 0:00:03]}  Rxb6+ {[%clk 0:00:04]} 84. Kxb6 {[%clk 0:00:03]}  d1=Q {[%clk 0:00:05]} 85. Rh6 {[%clk 0:00:02]}  Qd4+ {[%clk 0:00:04]} 86. Kc7 {[%clk 0:00:01]}  Qg7+ {[%clk 0:00:04]} 0-1


[Site "https://www.chess.com"]

[Event "Titled Tuesday Blitz July 05 Late 2022"]
[White "Oparin, Grigoriy"]
[Black "Eljanov, Pavel"]
[WhiteFideId "24125890"]
[BlackFideId "14102951"]
[WhiteElo "2639"]
[BlackElo "2601"]
[Result "1-0"]
[Round "04"]
[TimeControl "180+1"]
[Date "2022.07.05"]
[WhiteClock "0:00:18"]
[BlackClock "0:00:32"]

1. d4 {[%clk 0:03:00]}  Nf6 {[%clk 0:02:58]} 2. c4 {[%clk 0:03:01]}  e6 {[%clk 0:02:59]} 3. Nf3 {[%clk 0:03:02]}  d5 {[%clk 0:02:58]} 4. g3 {[%clk 0:03:02]}  Bb4+ {[%clk 0:02:57]} 5. Bd2 {[%clk 0:03:00]}  Be7 {[%clk 0:02:58]} 6. Bg2 {[%clk 0:03:00]}  O-O {[%clk 0:02:58]} 7. O-O {[%clk 0:03:01]}  Nbd7 {[%clk 0:02:59]} 8. Bc3 {[%clk 0:03:02]}  c6 {[%clk 0:02:52]} 9. Nbd2 {[%clk 0:03:01]}  b6 {[%clk 0:02:53]} 10. b4 {[%clk 0:03:01]}  Bb7 {[%clk 0:02:41]} 11. Qb3 {[%clk 0:03:01]}  Ne4 {[%clk 0:02:12]} 12. Nxe4 {[%clk 0:02:56]}  dxe4 {[%clk 0:02:13]} 13. Nd2 {[%clk 0:02:54]}  f5 {[%clk 0:02:12]} 14. c5 {[%clk 0:02:54]}  Rf6 {[%clk 0:02:10]} 15. f3 {[%clk 0:02:48]}  exf3 {[%clk 0:02:08]} 16. Nxf3 {[%clk 0:02:38]}  Qc7 {[%clk 0:01:45]} 17. Rae1 {[%clk 0:02:33]}  Ba6 {[%clk 0:01:39]} 18. a4 {[%clk 0:02:26]}  h6 {[%clk 0:01:33]} 19. b5 {[%clk 0:02:22]}  Bb7 {[%clk 0:01:33]} 20. e4 {[%clk 0:01:45]}  fxe4 {[%clk 0:01:33]} 21. Rxe4 {[%clk 0:01:44]}  Nf8 {[%clk 0:01:33]} 22. Ne5 {[%clk 0:01:13]}  Rxf1+ {[%clk 0:01:26]} 23. Kxf1 {[%clk 0:01:14]}  cxb5 {[%clk 0:01:23]} 24. c6 {[%clk 0:01:14]}  Bxc6 {[%clk 0:01:21]} 25. Nxc6 {[%clk 0:01:14]}  Qxc6 {[%clk 0:01:22]} 26. Rg4 {[%clk 0:00:33]}  Qe8 {[%clk 0:00:51]} 27. Bxa8 {[%clk 0:00:33]}  Qxa8 {[%clk 0:00:49]} 28. d5 {[%clk 0:00:33]}  g5 {[%clk 0:00:48]} 29. axb5 {[%clk 0:00:27]}  exd5 {[%clk 0:00:47]} 30. Rd4 {[%clk 0:00:22]}  Qc8 {[%clk 0:00:43]} 31. Qxd5+ {[%clk 0:00:21]}  Qe6 {[%clk 0:00:41]} 32. Qxe6+ {[%clk 0:00:20]}  Nxe6 {[%clk 0:00:42]} 33. Re4 {[%clk 0:00:21]}  Kf7 {[%clk 0:00:42]} 34. Kg2 {[%clk 0:00:20]}  Nc7 {[%clk 0:00:42]} 35. Re5 {[%clk 0:00:18]}  Bd6 {[%clk 0:00:42]} 36. Rf5+ {[%clk 0:00:18]}  Ke7 {[%clk 0:00:42]} 37. g4 {[%clk 0:00:19]}  Ke6 {[%clk 0:00:38]} 38. Bg7 {[%clk 0:00:19]}  h5 {[%clk 0:00:34]} 39. Rxg5 {[%clk 0:00:18]}  hxg4 {[%clk 0:00:34]} 40. Rxg4 {[%clk 0:00:17]}  Nxb5 {[%clk 0:00:34]} 41. h4 {[%clk 0:00:18]}  Nc7 {[%clk 0:00:32]} 42. h5 {[%clk 0:00:18]} 1-0


[Site "https://www.chess.com"]

[Event "Titled Tuesday Blitz July 05 Late 2022"]
[White "Pakleza, Zbigniew"]
[Black "Tatarinov, Dmitry"]
[WhiteFideId "1119290"]
[BlackFideId "24160067"]
[WhiteElo "2467"]
[BlackElo "2302"]
[Result "1-0"]
[Round "04"]
[TimeControl "180+1"]
[Date "2022.07.05"]
[WhiteClock "0:00:30"]
[BlackClock "0:01:02"]

1. d4 {[%clk 0:03:00]}  d5 {[%clk 0:02:57]} 2. Bf4 {[%clk 0:02:59]}  Nf6 {[%clk 0:02:55]} 3. e3 {[%clk 0:02:59]}  e6 {[%clk 0:02:55]} 4. Nd2 {[%clk 0:02:58]}  c5 {[%clk 0:02:56]} 5. c3 {[%clk 0:02:58]}  Bd6 {[%clk 0:02:56]} 6. Bg3 {[%clk 0:02:58]}  O-O {[%clk 0:02:52]} 7. Ngf3 {[%clk 0:02:58]}  Qc7 {[%clk 0:02:52]} 8. Ne5 {[%clk 0:02:54]}  Nc6 {[%clk 0:02:45]} 9. f4 {[%clk 0:02:53]}  Ne7 {[%clk 0:02:44]} 10. Bd3 {[%clk 0:02:51]}  Nf5 {[%clk 0:02:43]} 11. Bf2 {[%clk 0:02:49]}  b6 {[%clk 0:02:33]} 12. g4 {[%clk 0:02:44]}  Ne7 {[%clk 0:02:30]} 13. g5 {[%clk 0:02:37]}  Nd7 {[%clk 0:02:29]} 14. Qf3 {[%clk 0:02:15]}  Bb7 {[%clk 0:02:26]} 15. O-O {[%clk 0:02:14]}  Nf5 {[%clk 0:02:24]} 16. Qh3 {[%clk 0:02:06]}  f6 {[%clk 0:02:14]} 17. gxf6 {[%clk 0:01:51]}  gxf6 {[%clk 0:02:14]} 18. Nef3 {[%clk 0:01:32]}  Rf7 {[%clk 0:01:53]} 19. Kh1 {[%clk 0:01:28]}  Nf8 {[%clk 0:01:44]} 20. Rg1+ {[%clk 0:01:28]}  Kh8 {[%clk 0:01:37]} 21. Nh4 {[%clk 0:01:21]}  Nxh4 {[%clk 0:01:35]} 22. Bxh4 {[%clk 0:01:22]}  e5 {[%clk 0:01:32]} 23. fxe5 {[%clk 0:01:04]}  fxe5 {[%clk 0:01:33]} 24. Raf1 {[%clk 0:01:04]}  e4 {[%clk 0:01:28]} 25. Be2 {[%clk 0:01:00]}  Bc8 {[%clk 0:01:21]} 26. Qg2 {[%clk 0:00:40]}  Ng6 {[%clk 0:01:19]} 27. Bf6+ {[%clk 0:00:37]}  Kg8 {[%clk 0:01:17]} 28. Bh5 {[%clk 0:00:35]}  Rg7 {[%clk 0:01:01]} 29. Bxg7 {[%clk 0:00:32]}  Qxg7 {[%clk 0:01:02]} 30. Bxg6 {[%clk 0:00:31]}  hxg6 {[%clk 0:01:02]} 31. Qxg6 {[%clk 0:00:30]} 1-0


[Site "https://www.chess.com"]